Cogmind - Beta 14 @@@ ROGUE MODE // 2024.10.18 @ 16:55:16 Player: N.W.L Result: Destroyed by 8R-AWN with 8R-AWN's Boregun Performance ------------- Evolutions (1) 500 Regions Visited (5) 1000 Robots Destroyed (122) 610 Value Destroyed (2119) 2119 Prototype IDs (42) 840 Alien Tech Used (0) 0 Bonus (418) 418 TOTAL SCORE: 5487 Bonus ------- High Alert Combat Kills 76 Follower Combat Kills 42 Aligned with FarCom 300 Cogmind --------- Core Integrity 0/400 Matter 48/300 Energy 100/100 System Corruption 0% Temperature Cool (0) Movement Core (50) Location -9/Exiles Parts ------- > --- POWER (1) -------- (None) > --- PROPULSION (2) --- Light Treads > --- UTILITY (3) ------ (None) > --- WEAPON (3) ------- (None) > --- INVENTORY (5) ---- Large Storage Unit AWS/Gauss Peak State ------------ > --- POWER ------------ Heavy Ion Engine > --- PROPULSION ------- Light Treads Light Treads > --- UTILITY ---------- Reflective Plating Reflective Plating > --- WEAPON ----------- Minigun AWS/Gauss > --- INVENTORY -------- Light Treads Minigun Minigun [Rating: 30] Favorites ----------- Power Ion Engine Engine Ion Engine Propulsion Light Treads Treads Light Treads Leg Aluminum Leg Utility Large Storage Unit Device Cooling System Storage Large Storage Unit Hackware Hacking Suite Protection Reflective Plating Weapon Light Cannon Energy Gun Small Laser Ballistic Gun Minigun Ballistic Cannon Light Cannon Launcher Rocket Launcher Impact Weapon Heavy Hammer Special Melee Weapon Datajack Build | -11 -10 -10 -9 -9 -9 ------- Run | Yrd Mat Min Mat Min Exi Slots Evolved 2 | . . . 2 . . Power . | . . . . . . Propulsion . | . . . . . . Utility 1 | . . . 1 . . Weapon 1 | . . . 1 . . Parts Attached 90 | 4 10 2 45 12 17 Power 5 | . 1 . 3 1 . Engine 5 | . 1 . 3 1 . Core . | . . . . . . Reactor . | . . . . . . Propulsion 15 | 2 2 . 8 . 3 Treads 15 | 2 2 . 8 . 3 Leg . | . . . . . . Wheel . | . . . . . . Hover . | . . . . . . Flight . | . . . . . . Utility 21 | 2 4 . 12 1 2 Device 8 | 2 2 . 4 . . Storage 3 | . 1 . 1 . 1 Processor . | . . . . . . Hackware 2 | . 1 . 1 . . Protection 8 | . . . 6 1 1 Artifact . | . . . . . . Weapon 49 | . 3 2 22 10 12 Energy Gun 3 | . 1 . 2 . . Energy Cannon . | . . . . . . Ballistic Gun 11 | . . . . 4 7 Ballistic Cannon 19 | . 2 1 14 2 . Launcher 10 | . . 1 6 2 1 Special Weapon . | . . . . . . Impact Weapon 3 | . . . . 2 1 Slashing Weapon . | . . . . . . Piercing Weapon . | . . . . . . Special Melee Weapon 3 | . . . . . 3 Unidentified Prototypes 4 | . . . 4 . . Parts Lost 13 | . 1 . . 2 10 Power 1 | . . . . 1 . Propulsion 4 | . . . . . 4 Utility 4 | . 1 . . . 3 Weapon 4 | . . . . 1 3 Highest Loss Streak 9 | . 1 . . 1 9 To Critical Strikes 4 | . . . . . 4 Average Slot Usage (%) 99 | . 99 100 99 100 95 Engine 11 | . 14 14 10 11 10 Treads 23 | . 28 28 22 22 21 Device 10 | . 5 14 12 11 9 Storage 11 | . 14 14 11 11 9 Hackware 4 | . 8 . 3 5 . Protection 4 | . . . 5 5 11 Energy Gun 1 | . 8 . . . . Ballistic Gun 7 | . 8 . . 18 21 Ballistic Cannon 20 | . 10 27 32 14 . Peak Build Rating 30 | 9 10 9 23 25 30 Average Rating 16 | 7 9 8 17 22 23 On Entrance 12 | 6 8 8 9 21 23 Naked Turns . | . . . . . . Heaviest Build 64 | 14 32 32 48 44 64 Greatest Support 46 | 40 40 40 46 46 46 Greatest Overweight (x) 1 | . . . 1 . 1 Average Overweight (x) . | . . . . . . Largest Inventory Capacity 20 | 8 15 15 15 15 20 Average Capacity 14 | 8 12 15 15 15 16 Most Carried 19 | 8 15 15 15 15 19 Average Carried 13 | 6 11 14 14 12 14 Final Capacity 15 | 8 15 15 15 15 5 Final Carried 15 | 7 14 15 15 10 3 Class Distribution -------------------- 41% | Mutant 31% | Tank 22% | Gunner 3% | Skirmisher Dominant Class ---------------- Mutant | -10/Materials Mutant | -10/Mines Tank | -9/Materials Tank | -9/Mines Mutant | -9/Exiles Resources | -11 -10 -10 -9 -9 -9 ----------- Run | Yrd Mat Min Mat Min Exi Matter Collected 2825 | 270 287 170 1508 456 134 Remotely 378 | . . . 378 . . Salvage Created 3059 | 171 800 108 1519 454 7 Parts 243 | 14 53 19 125 32 . Haulers Intercepted 7 | . 2 . 5 . . Recyclers Shooed 9 | . 5 1 3 . . Parts Field Recycled . | . . . . . . Retrieved Matter . | . . . . . . Parts Self-Destructed . | . . . . . . Prevented . | . . . . . . Kills | -11 -10 -10 -9 -9 -9 ------- Run | Yrd Mat Min Mat Min Exi Combat Hostiles Destroyed 72 | . 11 5 36 15 5 Guns 18 | . 11 . . 6 1 Cannons 27 | . . 1 21 5 . AOE 27 | . . 4 15 4 4 Classes Destroyed 13 | 2 6 1 2 1 1 Worker 9 | . 2 1 6 . . Builder 4 | . . 1 3 . . Tunneler 12 | 5 1 3 1 2 . Hauler 7 | . 2 . 5 . . Recycler 13 | 1 5 . 6 1 . Operator 3 | . 1 . 2 . . Watcher 7 | . 2 . 5 . . Swarmer 31 | . 8 3 17 3 . Grunt 24 | . 3 2 8 11 . Brawler 1 | . . . 1 . . Sentry 10 | . . . 10 . . Zionite 1 | . . . . . 1 Assembled 6 | . . . . 1 5 Best Kill Streak 7 | 4 7 5 7 3 6 Combat Bots Only 6 | . 4 3 6 3 5 Max Kills in Single Turn 4 | 1 1 2 4 2 4 Gunslinging 1 | . . . . 1 . Exploded 4 | . . 2 4 1 4 Melee . | . . . . . . Uniques/NPCs Destroyed . | . . . . . . Combat | -11 -10 -10 -9 -9 -9 -------- Run | Yrd Mat Min Mat Min Exi Hostile Shots Fired 309 | . 35 20 113 52 89 Missed 90 | . 12 6 35 15 22 Damage Taken 3146 | . 210 211 962 516 1247 Core 431 | . 7 22 103 56 243 Absorbed by Shields . | . . . . . . Ignored by Resistances 19 | . . . . 19 . Regen/Repaired (Parts) 73 | . 73 . . . . Core Remaining (%) 94 | 100 . 88 . . . Volleys Fired 243 | 18 59 21 92 29 24 Largest 3 | 2 2 2 3 3 3 Hottest 113 | 60 70 70 113 113 75 Shots Fired 573 | 36 118 40 248 73 58 Gun 232 | 36 108 . . 32 56 Cannon 323 | . 10 38 240 35 . Launcher 18 | . . 2 8 6 2 Special . | . . . . . . Kinetic 483 | 18 64 38 240 67 56 Thermal 72 | 18 54 . . . . Explosive 18 | . . 2 8 6 2 Electromagnetic . | . . . . . . Robot Hit Streak 16 | 5 13 8 15 16 7 Robot Miss Streak 7 | 2 4 1 7 2 2 Penetration Max . | . . . . . . Secondary Targets 2 | . 1 . . 1 . Max Gunslinging Chain 1 | . 1 . . 1 . Shots Hit Robots 328 | 22 76 25 128 37 40 Core Hits 153 | 7 32 11 65 25 13 Critical Kills 1 | . . . . 1 . Critical Parts Destroyed . | . . . . . . Critical Strikes 12 | . 1 2 7 2 . Burn 1 | . 1 . . . . Destroy 1 | . . . . 1 . Blast 10 | . . 2 7 1 . Melee Attacks 13 | . . . . 8 5 Impact 8 | . . . . 8 . Slashing . | . . . . . . Piercing . | . . . . . . Sneak Attacks 5 | . . . . . 5 Combat Hostiles . | . . . . . . Follow-up Attacks . | . . . . . . Damage Inflicted 7757 | 252 989 750 3664 1257 845 Guns 2023 | 252 864 . . 326 581 Cannons 3654 | . 125 449 2670 410 . Explosions 2057 | . . 301 980 512 264 Melee . | . . . . . . Ramming 23 | . . . 14 9 . Kinetic 5176 | 147 593 449 2670 736 581 Thermal 633 | 105 396 83 . 49 . Explosive 1925 | . . 218 980 463 264 Electromagnetic . | . . . . . . Impact . | . . . . . . Slashing . | . . . . . . Piercing . | . . . . . . Highest Corruption . | . . . . . . Average Corruption . | . . . . . . Corruption Purged . | . . . . . . Corruption Blocked . | . . . . . . Overload Shots . | . . . . . . Overflow Damage 151 | . 7 30 114 . . Projectiles 34 | . 7 . 27 . . Explosions 117 | . . 30 87 . . Melee . | . . . . . . Knockbacks 29 | . 4 6 12 7 . Impact . | . . . . . . Kinetic 27 | . 4 5 11 7 . Secondary 2 | . . 1 1 . . Self-Inflicted Damage 178 | . . 50 47 81 . Shots 9 | . . 3 2 4 . Rammed 4 | . 1 . 2 1 . Targets Rammed 4 | . 1 . 2 1 . Kicked . | . . . . . . Crushed . | . . . . . . Highest Temperature 422 | . 57 165 422 2 115 Average Temperature 67 | . 18 53 110 2 54 Received Heat Transfer 576 | . 54 78 264 180 . Effects 2 | . . . 2 . . Damage (major) 2 | . . . 2 . . Siege Activations . | . . . . . . Robots Corrupted . | . . . . . . Combat Hostiles . | . . . . . . Parts Fried . | . . . . . . Impact Corruptions . | . . . . . . Robots Melted . | . . . . . . Combat Hostiles . | . . . . . . Parts Melted 2 | . 2 . . . . Heat Transferred 1470 | 250 1020 100 . 100 . Parts Sabotaged . | . . . . . . Parts Stolen . | . . . . . . Parts Stripped . | . . . . . . Power Chain Reactions . | . . . . . . Alert | -11 -10 -10 -9 -9 -9 ------- Run | Yrd Mat Min Mat Min Exi Peak Influence 557 | 30 264 123 557 410 . Initial 217 | . 19 1 . 217 . Average 217 | 15 65 60 328 299 . Maximum Alert Level 2 | . 1 . 2 2 . Low Security (%) 44 | 100 92 100 15 . . Level 1 38 | . 7 . 54 74 . Level 2 17 | . . . 30 25 . Level 3 . | . . . . . . Level 4 . | . . . . . . Level 5 . | . . . . . . High Security . | . . . . . . Max Security . | . . . . . . Squads Dispatched 2 | . 2 . . . . Investigation 1 | . 1 . . . . Extermination . | . . . . . . Reinforcement 1 | . 1 . . . . Assault . | . . . . . . Garrison . | . . . . . . Intercept . | . . . . . . Searches Triggered . | . . . . . . Construction Impeded . | . . . . . . Haulers Reinforced . | . . . . . . Active Scanning Responses . | . . . . . . Cargo Convoy Interrupts . | . . . . . . Stealth | -11 -10 -10 -9 -9 -9 --------- Run | Yrd Mat Min Mat Min Exi Distress Signals 6 | . 3 . 2 1 . Communications Jammed . | . . . . . . Distress Signals . | . . . . . . Times Spotted 100 | . 20 5 48 17 10 Peak Tracking Total 10 | . 4 3 5 4 10 Tactical Retreats 3 | . . . 1 1 1 Traps | -11 -10 -10 -9 -9 -9 ------- Run | Yrd Mat Min Mat Min Exi Traps Triggered 2 | . 1 . 1 . . Indirectly . | . . . . . . Trap Hack Attempts . | . . . . . . Triggered . | . . . . . . Disarmed . | . . . . . . Reprogrammed . | . . . . . . Reused . | . . . . . . Traps Extracted . | . . . . . . Installed . | . . . . . . Triggered . | . . . . . . Machines | -11 -10 -10 -9 -9 -9 ---------- Run | Yrd Mat Min Mat Min Exi Machines Disabled 12 | . . 3 4 2 3 Max in Single Turn 3 | . . 3 1 2 1 Machines Repaired . | . . . . . . Machines Dismantled . | . . . . . . Machines Sabotaged . | . . . . . . Overloaded Fab Kills . | . . . . . . Hacking | -11 -10 -10 -9 -9 -9 --------- Run | Yrd Mat Min Mat Min Exi Machines Accessed 27 | . 9 . 16 . 2 Terminals 18 | . 7 . 11 . . Fabricators . | . . . . . . Repair Stations 2 | . 1 . 1 . . Recycling Units 3 | . 1 . 2 . . Scanalyzers 2 | . . . 2 . . Garrison Access . | . . . . . . Total Hacks 75 | . 27 . 46 . 2 Successful 42 | . 16 . 24 . 2 Failed 33 | . 11 . 22 . . Catastrophic 2 | . . . 2 . . Database Lockouts . | . . . . . . Manual 43 | . 20 . 22 . 1 Terminals 58 | . 23 . 35 . . Fabricators . | . . . . . . Repair Stations 7 | . 3 . 4 . . Recycling Units 6 | . 1 . 5 . . Scanalyzers 2 | . . . 2 . . Garrison Access . | . . . . . . Terminal Hacks 13 | . 4 . 7 . 2 Record 1 | . . . . . 1 Robot Analysis 3 | . 2 . 1 . . Branch Access Points 1 | . 1 . . . . Terminal Index 2 | . 1 . 1 . . Unreport Threat 1 | . . . 1 . . Locate Traps 1 | . . . 1 . . Patrol Status 1 | . . . 1 . . Hauler Manifests 1 | . . . 1 . . Registered Components 1 | . . . 1 . . Derelict Proto ID Bank 1 | . . . . . 1 Fabricator Hacks . | . . . . . . Repair Station Hacks 4 | . 2 . 2 . . Scan Component 3 | . 1 . 2 . . Repair 1 | . 1 . . . . Recycling Unit Hacks 3 | . 1 . 2 . . Retrieve Components 3 | . 1 . 2 . . Scanalyzer 1 | . . . 1 . . Insert Component 1 | . . . 1 . . Garrison Access Hacks . | . . . . . . Unauthorized Hacks 21 | . 9 . 12 . . Terminals 21 | . 9 . 12 . . Assimilate 2 | . 2 . . . . Botnet 2 | . 1 . 1 . . Operators 2 | . 1 . 1 . . Skim 15 | . 5 . 10 . . Fabricators . | . . . . . . Repair Stations . | . . . . . . Recycling Units . | . . . . . . Scanalyzers . | . . . . . . Garrison Access . | . . . . . . Data Cores Recovered 1 | . . . 1 . . Used . | . . . . . . Hacking Detections 22 | . 8 . 14 . . Full Trace Events 1 | . 1 . . . . Feedback Events . | . . . . . . Feedback Blocked . | . . . . . . Robot Schematics Acquired . | . . . . . . Robots Built . | . . . . . . Authchips . | . . . . . . Time . | . . . . . . Total Robot Build Rating . | . . . . . . Part Schematics Acquired . | . . . . . . Parts Built . | . . . . . . Authchips . | . . . . . . Time . | . . . . . . Total Part Build Rating . | . . . . . . Parts Repaired 1 | . 1 . . . . Time 26 | . 26 . . . . Parts Recycled . | . . . . . . Recycled Matter . | . . . . . . Retrieved Matter . | . . . . . . Retrieved Components 19 | . 1 . 18 . . Parts Scanalyzed . | . . . . . . Part Schematics Acquired . | . . . . . . Parts Damaged . | . . . . . . Bothacking | -11 -10 -10 -9 -9 -9 ------------ Run | Yrd Mat Min Mat Min Exi Used RIF Installer . | . . . . . . Robots Hacked 4 | . . . . . 4 Non-combat 3 | . . . . . 3 Combat 1 | . . . . . 1 Robot Hacks Applied 5 | . . . . . 5 parse_system 5 | . . . . . 5 Relay Couplers Released . | . . . . . . Fabnet Peak Effective % . | . . . . . . Robots Rewired . | . . . . . . Allies Hacked . | . . . . . . Hacks Repelled . | . . . . . . Allies | -11 -10 -10 -9 -9 -9 -------- Run | Yrd Mat Min Mat Min Exi Total Allies 3 | . . . . 3 . Largest Group 3 | . . . . 3 3 Highest-Rated Group 40 | . . . . 40 40 Highest-Rated Ally 16 | . . . . 16 16 Total Orders 4 | . . . . 2 2 STAY 2 | . . . . 1 1 FOLLOW 2 | . . . . 1 1 Ally Attacks 25 | . . . . 15 10 Total Damage 147 | . . . . 108 39 Kills 2 | . . . . 2 . Allies Corrupted . | . . . . . . Allies Melted . | . . . . . . Intel | -11 -10 -10 -9 -9 -9 ------- Run | Yrd Mat Min Mat Min Exi Robot Analysis Total 3 | . 2 . 1 . . Derelict Logs Recovered 4 | . . 2 . 2 . Drone Launches . | . . . . . . Drone Recoveries . | . . . . . . Exploration | -11 -10 -10 -9 -9 -9 ------------- Run | Yrd Mat Min Mat Min Exi Turns Passed 7899 | 115 1734 901 2940 1246 963 Spaces Moved 3484 | 40 739 519 1145 655 386 Core 4 | . . . . . 4 Treads 3447 | 7 739 519 1145 655 382 Legs 33 | 33 . . . . . Wheels . | . . . . . . Hover . | . . . . . . Flight . | . . . . . . Fastest Speed 50 | 120 160 160 160 160 50 Average Speed 177 | 127 160 160 198 160 209 Slowest Speed 240 | 160 160 160 240 160 240 Overloaded Moves . | . . . . . . Propulsion Burnouts . | . . . . . . Robots Hopped . | . . . . . . Cave-ins Triggered . | . . . . . . Exploration Rate (%) 74 | 3 95 89 93 99 69 Regions Visited 5 Branch Regions 3 Pre-discovered Areas 14 | . 3 . 8 2 1 Known Exits Taken 2 | . 1 1 . . . Unknown Exits Taken 3 | 1 . . 1 1 . Scrap Searched 2 | . . 1 . 1 . Spaces Dug 48 | . . 15 16 . 17 Terrain Destroyed 153 | . . 27 66 43 17 Melee . | . . . . . . Projectile 12 | . . . 10 2 . AOE 141 | . . 27 56 41 17 Terrain Rammed . | . . . . . . Walls Destroyed . | . . . . . . Machines Disabled . | . . . . . . Actions | -11 -10 -10 -9 -9 -9 --------- Run | Yrd Mat Min Mat Min Exi Total 4709 | 70 1174 550 1625 784 506 Wait 766 | . 341 4 292 78 51 Move 3479 | 39 738 518 1144 654 386 Hop . | . . . . . . Pick Up 45 | 4 14 3 16 . 8 Fast Attach 11 | 2 2 . 7 . . Attach 15 | 2 2 . 3 2 6 Detach 5 | 1 . . 2 . 2 Swap 64 | . 6 2 35 10 11 Drop 64 | 4 11 2 32 2 13 Fire 243 | 18 59 21 92 29 24 Melee 13 | . . . . 8 5 Ram . | . . . . . . Kick . | . . . . . . Crush 4 | . 1 . 2 1 . Escape Stasis . | . . . . . . Rewire . | . . . . . . Trap . | . . . . . . Miscellaneous . | . . . . . . Route ------- -11/Scrapyard -10/Materials (discovered 5 exits: *Mat x3 / *Min x2) -10/Mines (discovered 3 exits: *Mat x2 / Sub) -9/Materials (discovered 4 exits: *Mat x3 / [*Min]) -9/Mines (discovered 4 exits: *Mat x2 / *Exi / [*Zio]) -9/Exiles History --------- Turn | Location | Event 23 | -11/Scrapyard | Discovered new exit (range 3) 116 | -11/Scrapyard | Entered Materials 314 | -10/Materials | Build established: Mutant 631 | -10/Materials | Discovered new exit (range 16) 782 | -10/Materials | Discovered new exit (range 16) 856 | -10/Materials | Repaired Lgt. Treads 1044 | -10/Materials | Discovered new exit (range 12) 1211 | -10/Materials | Discovered new exit (range 16) 1366 | -10/Materials | Discovered new exit (range 5) 1439 | -10/Materials | Learned location of Recycling (-8) 1497 | -10/Materials | Learned location of 1 exit from Storage 1514 | -10/Materials | Learned Storage trap positions 1520 | -10/Materials | Learned 2 Mines zone layouts 1526 | -10/Materials | Learned 2 Mines zone layouts 1542 | -10/Materials | Learned location of Storage (-8) 1569 | -10/Materials | Learned Storage emergency access door positions 1793 | -10/Materials | Identified exit to Mines 1850 | -10/Materials | Entered Mines 1851 | -10/Mines | Identified exit to Materials 1852 | -10/Mines | Identified exit to Subcaves 1972 | -10/Mines | Learned location of 1 exit from Materials 2087 | -10/Mines | Found a damaged Exp. Sensor Array with a note attached 2091 | -10/Mines | Found Prototype Device 2112 | -10/Mines | Learned 2 Materials zone layouts 2158 | -10/Mines | Received a Rocket Launcher from a helpful Derelict 2751 | -10/Mines | Entered Materials 2751 | -9/Materials | Evolved 2 slots: Utility x1, Weapon x1 2752 | -9/Materials | Identified exit to Materials 3054 | -9/Materials | Build established: Skirmisher 3371 | -9/Materials | Build established: Tank 3440 | -9/Materials | Identified Exp. Sensor Array 3763 | -9/Materials | Discovered new exit (range 12) 4243 | -9/Materials | Learned location of Mines (-8) 4318 | -9/Materials | Learned Storage trap positions 4320 | -9/Materials | Discovered exit to Materials (range 5) 4322 | -9/Materials | Learned 4 Materials zone layouts 4323 | -9/Materials | Learned location of 1 exit from Storage 4336 | -9/Materials | Learned location of Zion (-7) 4948 | -9/Materials | Build established: Gunner 5684 | -9/Materials | Learned Storage stockpile data 5691 | -9/Materials | Entered Mines 5719 | -9/Mines | A Derelict revealed a hidden shortcut to a safe place 5899 | -9/Mines | Assisted by bots powering up and referring to "LRC-V3" 6176 | -9/Mines | Learned 2 Materials zone layouts 6200 | -9/Mines | Excavation squad dispatched 6200 | -9/Mines | A large section of the Mines collapsed 6581 | -9/Mines | Build established: Tank 6915 | -9/Mines | Deemed a non-threat by the Exiles lab entrance 6920 | -9/Mines | Discovered new exit (range 5) 6937 | -9/Mines | Entered Exiles 6937 | -9/Exiles | Accompanied by 3 allies 6976 | -9/Exiles | Met 8R-AWN 7049 | -9/Exiles | Met EX-HEX 7157 | -9/Exiles | Met EX-DEC 7220 | -9/Exiles | Build established: Mutant 7276 | -9/Exiles | Met EX-BIN 7313 | -9/Exiles | Aligned with FarCom system 7315 | -9/Exiles | Given EX-Vault access code 7373 | -9/Exiles | Opened EX-Vault 7385 | -9/Exiles | Found AWS/Gauss 7388 | -9/Exiles | Found Supersonic Drone Bay 7452 | -9/Exiles | Warned to stay clear of 0b10 Research branches 7690 | -9/Exiles | Attacked by the Exiles 7761 | -9/Exiles | Build established: Tank 7808 | -9/Exiles | Core integrity fell below 50% 7873 | -9/Exiles | Core integrity fell below 20% 7900 | -9/Exiles | Destroyed by 8R-AWN with 8R-AWN's Boregun Last Messages --------------- 07855_ Penetrated by HV Slug. 07855_ Acquired 1 matter. 07859_ Penetrated by HV Slug. 07862_ Acquired 6 matter. 07865_ Penetrated by HV Slug. 07866_ Acquired 10 matter. 07869_ Penetrated by HV Slug. 07869_ Critical hit (Destroy). 07869_ Minigun destroyed. 07870_ Machine disabled. 07876_ Acquired 9 matter. 07876_ Lgt. Treads destroyed. 07876_ Minigun destroyed. 07879_ Dropped Hvy. Ion Engine. 07880_ Acquired 5 matter. 07900_ Penetrated by HV Slug. 07900_ Critical hit (Destroy). 07900_ Minigun destroyed. 07900_ HV Slug penetrates Wall. 07900_ Penetrated by HV Slug. Map ----- +----------------------------------------------------+ | ????????????????????????????????????????# #??" | | ????????????????????????????????????????# ## | | ????????????????????????????????????????# | | ????????????????????????????????????????# ## | | ??????????????????????????????????####??# #??" | | ?????????????????????????????????""""""?# #??? | | ?????????????????????????????????"""" ## #??? | | ????????????????????????????????#""X" #??? | | ????????????????????????????????#" #??? | | ????????????????????????????????#" ## #??? | | ????????????????????????????????#""""""?# #?## | | ????????????????????????????????##"###??# #?#" | | ????????????????????????????????????????# #?#" | | ????????????????????????????????????????# #?#" | | ???????????????????????????????????????## ###" | | ???????######??????????????????????????#" | | #??????#!!! #?????????????????????????#" | | ##?????# "??????????????????????????#" | | #?????# "#?????????????????????????#" | | ##???## ""#??????????########???????#" | | #####" "#??????????# """#???????#" | | ##" ""#??????????#"" """#???????## | | ! #"" #????????????#"" #????????# | | = #####????????#"" #????????#" " | | [ # # ###??????#"" "#????????#" " | | ##* ! ###????#@g ""#????????#" """ | | " !!] # # #????#"" ""#???????##" #### | | "" / !!/ # #????### %###??????##"" #??? | | [""## " ##???###* ###?######"" #??? | | #?## #####X# #"###""""""" ##?? | | ##??#" % """""" " "" ##? | | """##???#"# "" """ " ## | | ###?????#### " | | ???????????### | | ?????????????##" | | ??????????????### | | ????????????????## | | ?????????????????##" | | ??????????????????#"" """""" | | ?????????????????##" ######""" | | ?????????????????#"" ""##?????####""" | | ????????????????##""" """##??????????#"" | | ????????????????#""" """##???????????#"" | | ????????????????#""" ""#???????????##"" | | ????????????????#"" ########??####""" | | ????????????????#""" ## ####""" | | ????????????????#"" """" | | ????????????????##"" | | ?????????????????#"""" | | ?????????????????## | +----------------------------------------------------+ Best States ------------- Heat Dissipation 50 Energy Generation 14 Energy Capacity 280 Matter Stores 300 Matter Capacity 300 Sight Range 16 Terrain Scan Range 16 Terrain Scan Density 10 Armor Coverage 300 Resistance: TH 10 Evasion (%) 55 Recoil Reduction 2 Offensive Hacking 10 Item Schematics ----------------- None Robot Schematics ------------------ None Fabricated ------------ Nothing Alien Tech Used ----------------- None Achievements -------------- None Challenges ------------ None Game ------ Seed SalvageGodArmor Manual? 0 Play Time 00:46:55 Cumulative 337.7 hours Start 2024.10.18 @ 16:00:24 End 2024.10.18 @ 16:55:16 Sessions 1 Manual Loads 0 Difficulty Rogue Special Mode None Game No. 169 Rogue 169 Adventurer 0 Explorer 0 Win Type - Total 9 Types 5/1/3/0/0/0/0/0/0 Lore% 84 Gallery% 88 Achievement% 73 Wizard Run 0 Options --------- Layout 0 ASCII 0 Keyboard 0 Movement Mouse Keybinds 0 Fullscreen 2 Font 12/Smallcaps Map View 83x54 Zoom Use 0% Tactical HUD 1 Map Filters NONE Filters NONE Steam 1 RUN: 9febdc6f-1598-447d-ac6f-c433649893bf